bitfinex/quotes_ETHUSD_20210701
["timestamp","ask_amount","ask_price","bid_price","bid_amount"]
[1625175735052,0.2,2122.9,2122.8,5.21]
[1625175735148,0.2,2122.9,2122.8,0.2]
[1625175735247,0.2,2122.9,2122.3,9.41583]
[1625175735348,0.2,2122.9,2122.2,10.3755]
[1625175735945,0.2,2122.9,2122.3,15.0]
[1625175736149,0.2,2123.9,2122.4,0.2]
[1625175736400,0.2,2123.9,2122.4,7.26175]
[1625175736500,0.2,2123.9,2122.5,15.0114562]
[1625175736594,0.2,2123.9,2122.5,15.1]
[1625175736731,0.2,2123.9,2122.6,0.04]
[1625175737181,0.2,2123.9,2122.7,0.06]
[1625175737282,0.2,2123.9,2122.7,2.71191233]
[1625175737386,0.2,2123.9,2122.8,15.0]
[1625175737536,0.2,2123.9,2122.8,20.01]
[1625175738183,0.2,2123.9,2122.9,0.08]
[1625175738288,0.2,2123.9,2122.9,5.008]
[1625175738435,0.2,2123.9,2123.0,22.0599]
[1625175738537,0.2,2123.9,2123.0,27.0699]
[1625175738731,0.2,2123.9,2123.1,0.04]
[1625175739259,0.15,2123.9,2123.0,20.01]
[1625175739906,0.15,2123.9,2123.1,7.05985]
[1625175740007,0.15,2123.9,2123.1,22.05985]
[1625175740156,0.15,2123.9,2123.1,27.06985]
[1625175743546,0.15,2123.9,2123.1,5.01]
[1625175743638,0.15,2123.9,2123.0,15.0]
[1625175743887,0.15,2123.9,2123.0,20.01]
[1625175745492,0.15,2123.9,2123.1,7.05985]
[1625175745591,0.15,2123.9,2123.1,22.05985]
[1625175745725,0.15,2123.9,2123.1,27.06985]
[1625175746724,0.1,2123.9,2123.1,27.06985]
[1625175750732,0.1,2123.9,2123.1,31.29465]
[1625175752480,0.1,2123.9,2123.2,0.08]
[1625175753373,0.1,2123.9,2123.1,25.6328]
[1625175753522,0.1,2123.9,2123.1,21.408]
[1625175753622,0.1,2123.9,2123.4,7.05964]
[1625175766729,0.05,2123.9,2123.4,7.05964]
[1625175770632,0.05,2123.9,2123.4,10.63704]
[1625175775272,0.05,2123.9,2123.4,15.64704]
[1625175775425,0.05,2123.9,2123.5,0.2]
[1625175776683,0.05,2123.9,2123.7,7.05863]
[1625175778093,0.05,2123.9,2123.8,0.04]
[1625175778094,0.0001,2123.9,2123.8,0.04]
[1625175779243,0.0001,2123.9,2123.8,7.09787]
[1625175780285,7.05809477,2124.5,2123.8,22.09787]
[1625175780385,4.477e-05,2124.5,2123.8,27.10787]
[1625175780483,4.477e-05,2124.5,2123.9,0.12]
[1625175780737,4.477e-05,2124.5,2123.9,3.5379]
[1625175780838,4.477e-05,2124.5,2124.0,15.0]
[1625175780937,4.477e-05,2124.5,2124.0,26.7281626]
[1625175781086,43.3623,2125.7,2124.0,26.7281626]
[1625175781087,10.9071,2125.6,2124.0,30.70167147]
[1625175781287,10.9071,2125.6,2124.1,0.2]
[1625175781491,10.9071,2125.6,2124.4,7.05531]
[1625175781588,10.9071,2125.6,2124.5,15.0]
[1625175781901,0.00951823,2125.8,2124.6,0.16]
[1625175782098,0.00951823,2125.8,2124.6,0.17275514]
[1625175782207,7.775e-05,2125.9,2124.6,15.17275514]
[1625175782307,7.775e-05,2125.9,2124.7,15.0]
[1625175782405,0.00951517,2125.8,2124.8,0.09597848]
[1625175782607,0.86962822,2126.3,2125.2,10.29816]
[1625175782703,0.86962822,2126.3,2125.3,15.01523756]
[1625175782806,0.86962822,2126.3,2125.3,15.2]
[1625175782903,0.86962822,2126.3,2125.3,20.21]
[1625175783103,0.86962822,2126.3,2125.4,0.2]
[1625175783974,0.86962822,2126.3,2125.4,2.69676144]
[1625175784075,0.86962822,2126.3,2125.5,15.0]
[1625175784176,0.86962822,2126.3,2125.5,17.64635789]
[1625175784280,0.2,2126.9,2125.6,0.2]
[1625175784430,0.00951426,2126.5,2125.8,7.05099]
[1625175784530,0.00951426,2126.5,2125.9,15.0]
[1625175784724,0.00951426,2126.5,2125.9,20.01]
[1625175784831,0.00951426,2126.5,2125.9,40.50676144]
[1625175785031,0.00951426,2126.5,2126.0,2.84635789]
[1625175785177,0.00951426,2126.5,2126.1,15.0]
[1625175785378,0.00951426,2126.5,2126.1,28.01]
[1625175785576,0.00951426,2126.5,2126.1,22.65635789]
[1625175785776,0.00951426,2126.5,2126.2,0.2]
[1625175786079,0.00951426,2126.5,2126.3,0.2]
[1625175786239,0.00951426,2126.5,2126.4,7.04899]
[1625175786389,0.00951426,2126.5,2126.4,22.04899]
[1625175786487,0.00951426,2126.5,2126.4,27.05899]
[1625175786640,0.00951426,2126.5,2126.4,27.25899]
[1625175786740,0.00951426,2126.5,2126.4,35.25899]
[1625175786939,0.00951426,2126.5,2126.4,40.69247628]
[1625175787392,9.9956,2127.7,2126.4,40.69247628]
[1625175787492,0.00951337,2126.5,2126.4,49.82248628]
[1625175787667,6.87,2127.8,2126.4,49.62248628]
[1625175787757,6.87,2127.8,2126.5,0.098662]
[1625175787911,0.00951283,2127.2,2126.5,0.10555547]
[1625175788013,0.00951283,2127.2,2126.5,1.10179347]
[1625175788110,0.00951283,2127.2,2126.6,15.2]
[1625175788212,21.4983,2128.9,2126.6,27.86781584]
[1625175788312,0.2,2128.9,2126.7,10.34035857]
[1625175788566,0.00951247,2127.6,2127.3,11.622]
[1625175788568,0.00951247,2127.6,2127.3,26.622]
[1625175788665,0.00951247,2127.6,2127.4,15.0]
[1625175788762,0.2,2128.9,2127.4,15.0]
[1625175788857,0.2,2128.9,2127.5,0.2]
[1625175789015,0.0095115,2127.9,2127.6,0.01150086]
[1625175789112,10.3437,2129.8,2127.6,0.01150086]
[1625175789113,2.13928377,2130.6,2127.6,0.34210509]
[1625175789208,0.00951122,2128.3,2127.7,0.2]
[1625175789308,0.00951122,2128.3,2127.8,0.33060423]
[1625175789460,0.00951122,2128.3,2127.8,3.62800423]
[1625175789563,10.5061,2130.8,2127.9,20.4480496]
[1625175789661,10.5061,2130.8,2128.3,0.006]
[1625175789662,0.00951051,2128.8,2128.3,0.006]
[1625175789810,0.00951051,2128.8,2128.4,0.45555251]
[1625175789910,47.34846837,2131.1,2128.8,0.006]
[1625175790008,46.79846837,2131.1,2128.9,0.33060423]
[1625175790161,0.00951005,2129.1,2128.9,4.44810267]
[1625175790256,0.00951005,2129.1,2129.0,15.0]
[1625175790363,0.00951005,2129.1,2129.0,29.41150521]
[1625175790459,46.79846837,2131.1,2129.0,51.46622831]
[1625175790611,46.79846837,2131.1,2130.1,0.09843791]
[1625175790765,46.79846837,2131.1,2130.1,15.09843791]
[1625175790766,39.86002915,2131.1,2130.1,15.09843791]
[1625175790962,39.86002915,2131.1,2130.2,0.2]
[1625175791061,4.2153382,2131.4,2130.3,3.75823081]
[1625175791157,4.2153382,2131.4,2130.4,15.0]
[1625175791260,4.2153382,2131.4,2130.5,0.11551405]
[1625175791362,4.2153382,2131.4,2130.5,4.92051405]
[1625175791466,3.75907974,2131.4,2130.6,4.41150521]
[1625175791616,3.75907974,2131.4,2130.7,15.08225464]
[1625175791617,1.73817397,2131.4,2130.7,15.08225464]
[1625175791714,0.2,2132.9,2130.7,23.16225464]
[1625175791813,0.2,2132.9,2130.8,4.99049199]
[1625175791910,0.2,2132.9,2130.9,15.33060423]
[1625175792061,0.2,2132.9,2130.9,42.44017227]
[1625175792062,0.00950723,2132.8,2130.9,42.44017227]
[1625175792215,20.68399064,2134.2,2130.9,42.44017227]
[1625175792364,20.19319064,2134.2,2131.6,7.4317]
[1625175792465,20.19319064,2134.2,2131.7,15.0]
[1625175792466,0.00950695,2133.3,2131.7,15.0]
[1625175792565,0.00950695,2133.3,2131.7,24.82705772]
[1625175792673,0.19475866,2134.7,2131.8,0.33060423]
[1625175792815,0.009506,2134.1,2131.9,4.99049199]
[1625175793038,0.009506,2134.1,2132.8,1.222]
[1625175793041,0.009506,2134.1,2133.0,4.36150521]
[1625175793130,0.009506,2134.1,2133.1,0.11618394]
[1625175793231,0.009506,2134.1,2133.1,15.09945039]
[1625175793340,0.009506,2134.1,2133.2,4.16150521]
[1625175793438,0.05,2134.9,2133.3,15.0]
[1625175793583,0.05,2134.9,2133.3,28.02253952]
[1625175793689,0.05,2134.9,2133.3,29.15733952]
[1625175793833,0.05,2134.9,2133.5,5.1734]
[1625175793986,0.05,2134.9,2133.6,0.1594131]
[1625175794633,0.05,2134.9,2133.8,0.0984861]
[1625175794830,0.05,2134.9,2134.0,4.0]
[1625175794931,0.00950496,2135.0,2134.0,8.91716283]
[1625175795031,0.00950496,2135.0,2134.0,21.92716283]
[1625175795266,0.00950496,2135.0,2134.1,0.08]
[1625175795365,0.00950496,2135.0,2134.1,0.0235561]
[1625175795816,0.00950496,2135.0,2134.2,2.0]
[1625175796118,6.97152,2135.6,2134.2,2.0]
[1625175796217,6.97152,2135.6,2134.3,0.0890765]
[1625175796319,6.97152,2135.6,2134.3,2.0890765]
[1625175796873,6.87,2135.8,2134.5,0.05062118]
[1625175796973,6.87,2135.8,2134.5,4.24162118]
[1625175797069,6.87,2135.8,2134.5,9.25162118]
[1625175797174,6.72,2135.8,2135.6,0.24461776]
[1625175797321,6.72,2135.8,2135.6,4.88348829]
[1625175797568,0.1,2135.9,2135.6,4.88348829]
[1625175797569,0.1,2135.9,2135.6,4.63887053]
[1625175797770,6.98198435,2136.0,2135.6,4.63887053]
[1625175797917,6.98198435,2136.0,2135.6,0.4758186]
[1625175798922,6.93198435,2136.0,2135.6,0.4758186]
[1625175799471,6.93198435,2136.0,2135.5,3.1421]
[1625175799573,0.009407,2135.9,2135.5,1.4553]
[1625175799672,0.009407,2135.9,2134.7,0.03667665]
[1625175799880,0.009407,2135.9,2135.1,0.00653924]
[1625175799974,6.94139135,2136.0,2135.1,0.00653924]
[1625175799975,9.36146,2135.6,2135.1,0.00653924]
[1625175801032,11.99259612,2135.6,2135.1,0.00653924]
[1625175801280,2.38639783,2135.5,2134.6,0.00675379]
[1625175801383,5.50669783,2135.5,2134.6,0.00675379]
[1625175801480,20.0,2135.3,2134.6,0.00675379]
[1625175801630,13.01,2135.3,2134.6,0.00675379]
[1625175801734,20.0,2135.0,2134.6,0.00675379]
[1625175801832,20.0,2135.0,2134.1,0.00704162]
[1625175801833,32.4618,2135.0,2134.1,0.00704162]
[1625175802036,17.4718,2135.0,2134.1,0.00704162]
[1625175802043,3.5153652,2134.8,2134.1,0.00704162]
[1625175802133,20.0,2134.6,2134.1,0.00704162]
[1625175802284,9.36757838,2134.1,2132.6,0.00856439]
[1625175802384,12.49757838,2134.1,2132.6,0.00856439]
[1625175802483,25.50757838,2134.1,2132.6,0.00856439]
[1625175802740,25.50757838,2134.1,2133.6,0.0003812]
[1625175802890,2.63113612,2134.0,2133.5,0.08081974]
[1625175803093,7.64113612,2134.0,2133.1,0.1]
[1625175803190,7.79333871,2134.0,2133.1,0.1]
[1625175803290,11.7217,2133.7,2133.0,0.06947056]
[1625175803536,16.7317,2133.7,2133.0,0.06947056]
[1625175803642,16.8353197,2133.7,2133.0,0.06947056]
[1625175803743,5.21891149,2133.6,2133.0,0.06947056]
[1625175803887,9.84421149,2133.6,2133.0,0.06947056]
[1625175804039,14.9523271,2133.6,2133.0,0.06947056]
[1625175804137,14.9523271,2133.6,2132.5,0.0737888]
[1625175804364,7.808,2133.1,2132.5,0.0737888]
[1625175804459,15.808,2133.1,2132.5,0.0737888]
[1625175804557,20.818,2133.1,2132.5,0.0737888]
[1625175804656,23.47836862,2133.1,2132.5,0.0737888]
[1625175804758,2.67519203,2133.0,2132.5,0.0737888]
[1625175805016,7.68519203,2133.0,2132.5,0.0737888]
[1625175805165,7.0345,2132.8,2132.5,0.0737888]
[1625175805564,4.2,2133.1,2132.5,0.0737888]
[1625175805662,0.06947056,2133.5,2132.5,0.0737888]
[1625175805765,0.06947056,2133.5,2132.5,4.1568888]
[1625175805970,0.06947056,2133.5,2132.5,19.1568888]
[1625175806413,0.06947056,2133.5,2132.5,24.1668888]
[1625175806598,0.06947056,2133.5,2132.5,32.1668888]
[1625175807994,0.06947056,2133.5,2132.5,17.1668888]
[1625175808099,0.06947056,2133.5,2132.5,4.1568888]
[1625175808496,0.06947056,2133.5,2132.5,4.0568888]
[1625175808856,0.0737888,2133.0,2132.5,4.0568888]
[1625175809504,0.0737888,2133.0,2132.5,12.0568888]
[1625175809659,0.0737888,2133.0,2132.5,17.0668888]
[1625175810259,0.0737888,2133.0,2132.6,15.0]
[1625175810358,0.0043888,2133.0,2132.6,15.0]
[1625175810460,0.0043888,2133.0,2132.6,20.01]
[1625175810961,0.0043888,2133.0,2132.6,22.08467862]
[1625175811262,0.0043888,2133.0,2132.7,0.08]
[1625175811463,0.06947056,2133.5,2132.7,0.08]
[1625175811562,0.06947056,2133.5,2133.1,3.5942]
[1625175811713,0.06947056,2133.5,2133.2,15.0]
[1625175811865,0.06947056,2133.5,2133.2,23.0]
[1625175811962,0.06947056,2133.5,2133.3,5.0]
[1625175812063,0.06947056,2133.5,2133.4,15.0]
[1625175812165,0.06947056,2133.5,2133.4,33.0]
[1625175812313,0.06947056,2133.5,2133.4,43.01]
[1625175812421,0.06947056,2133.5,2133.4,45.61272822]
[1625175812518,0.06947056,2133.5,2133.4,47.67142267]
[1625175812768,0.08081974,2134.0,2133.4,47.22337307]
[1625175812964,0.08081974,2134.0,2133.4,59.87400887]
[1625175813697,0.00704162,2134.6,2133.5,0.50439191]
[1625175813849,0.1,2135.9,2133.5,0.50439191]
[1625175813850,0.1,2135.9,2133.6,51.50574481]
[1625175813945,0.1,2135.9,2133.8,0.31387068]
[1625175814045,0.1,2135.9,2134.0,20.0]
[1625175814148,0.1,2135.9,2134.1,15.70230336]
[1625175814247,7.01869,2136.3,2134.1,39.92714599]
[1625175814399,4.2653382,2136.5,2134.1,39.92714599]
[1625175814400,4.2653382,2136.5,2134.3,0.30268352]
[1625175814499,4.2653382,2136.5,2134.3,0.31774118]
[1625175814596,4.2653382,2136.5,2134.3,23.31774118]
[1625175814696,4.2653382,2136.5,2134.3,33.31774118]
[1625175814799,4.2653382,2136.5,2134.4,7.05869445]
[1625175814951,4.2653382,2136.5,2134.5,23.31387068]
[1625175815101,7.018,2136.4,2134.6,10.0]
[1625175815201,7.018,2136.4,2134.7,15.29598782]
[1625175815300,11.71085,2137.0,2134.7,23.29598782]
[1625175815398,11.71085,2137.0,2134.7,38.30598782]
[1625175815632,11.71085,2137.0,2134.9,0.25508439]
[1625175815723,11.66085,2137.0,2134.9,0.70313399]
[1625175815879,0.1495606,2137.4,2135.0,4.11150521]
[1625175816024,0.0995606,2137.4,2135.2,10.31387068]
[1625175816124,0.0995606,2137.4,2135.3,15.0]
[1625175816228,7.01523,2137.3,2135.4,0.31387068]
[1625175816380,7.01523,2137.3,2135.5,0.00961394]
[1625175816473,0.0995606,2137.4,2135.5,23.00961394]
[1625175816578,0.0995606,2137.4,2135.6,8.48009511]
[1625175816675,0.0995606,2137.4,2135.7,15.0]
[1625175816829,0.0995606,2137.4,2135.8,0.19922367]
[1625175816928,0.0995606,2137.4,2135.9,5.0]
[1625175817026,0.0995606,2137.4,2136.0,15.14286963]
[1625175817179,0.0495606,2137.4,2136.0,15.14286963]
[1625175817374,0.0495606,2137.4,2136.0,0.14286963]
[1625175817901,7.0647506,2137.4,2136.0,0.14286963]
[1625175819097,7.0647506,2137.4,2136.1,4.78198326]
[1625175819246,5.97854,2138.2,2136.2,15.03321363]
[1625175819353,5.97854,2138.2,2136.3,0.00809029]
[1625175819448,0.00974912,2138.6,2136.4,0.21814559]
[1625175819550,0.00974912,2138.6,2136.5,4.44054737]
[1625175819648,0.00974912,2138.6,2136.6,15.29195183]
[1625175819802,0.1,2138.9,2136.7,0.34165564]
[1625175819898,0.05,2138.9,2136.8,0.29063684]
[1625175819995,0.28001916,2139.5,2136.9,0.34359956]
[1625175820133,0.28001916,2139.5,2137.2,0.30664351]
[1625175820229,0.28001916,2139.5,2137.3,0.32904216]
[1625175820331,0.28001916,2139.5,2137.3,15.32904216]
[1625175820430,16.41905029,2140.3,2137.4,4.32537589]
[1625175820527,16.41905029,2140.3,2137.6,0.31387068]
[1625175820528,11.68344,2140.3,2137.6,0.31387068]
[1625175820629,11.68344,2140.3,2137.8,0.31387068]
[1625175820727,11.68344,2140.3,2138.0,0.30852669]
[1625175820877,11.68344,2140.3,2138.2,0.31387068]
[1625175820977,0.00784228,2139.2,2138.3,0.32904216]
[1625175821077,0.00784228,2139.2,2138.4,0.02247029]
[1625175821177,0.00784228,2139.2,2138.4,15.02247029]
[1625175821279,0.00784228,2139.2,2138.5,0.32904216]
[1625175821378,7.00825,2140.1,2138.5,0.33674866]
[1625175821529,7.00825,2140.1,2138.6,0.20609739]
[1625175821632,7.00825,2140.1,2138.8,0.08471607]
[1625175821779,7.00825,2140.1,2138.8,3.50041607]
[1625175821931,7.00825,2140.1,2139.0,0.05084642]
[1625175822031,7.00825,2140.1,2138.9,11.23219288]
[1625175822128,7.00825,2140.1,2138.8,3.43595426]
[1625175822353,7.00825,2140.1,2138.8,3.4157]
[1625175822455,0.05084642,2138.9,2138.8,3.4157]
[1625175822554,6.95825,2140.1,2138.8,3.4157]
[1625175822703,6.90825,2140.1,2138.8,3.4157]
[1625175823458,11.91825,2140.1,2138.8,3.4157]
[1625175823909,7.01069,2139.5,2138.8,3.4157]
[1625175824009,7.01069,2139.5,2138.1,0.00764007]
[1625175824111,15.34449,2139.5,2138.1,0.00764007]
[1625175824206,18.33449,2139.5,2138.1,0.00764007]
[1625175824310,23.34449,2139.5,2137.8,0.11051771]
[1625175824410,2.37929299,2139.4,2137.8,0.11051771]
[1625175824788,7.28860266,2139.5,2137.8,0.11051771]
[1625175824887,5.01,2139.5,2137.8,0.11051771]
[1625175824988,7.01231,2139.1,2137.8,0.11051771]
[1625175825191,5.01,2139.5,2137.8,0.11051771]
[1625175825435,16.69948,2139.9,2137.8,0.11051771]
[1625175825592,24.69948,2139.9,2137.8,0.11051771]
[1625175825692,0.15621962,2139.8,2137.8,0.12072282]
[1625175826141,0.15621962,2139.8,2137.8,0.11051771]
[1625175826142,7.01342,2138.9,2137.8,0.11051771]
[1625175826345,16.51072,2138.9,2137.8,0.11051771]
[1625175826438,17.4973,2138.9,2137.8,0.11051771]
[1625175826641,17.4973,2138.9,2136.2,10.02884924]
[1625175826879,0.14976033,2138.8,2136.3,0.0114149]
[1625175826966,0.00659572,2137.7,2136.3,0.0114149]
[1625175827067,3.32249572,2137.7,2136.2,0.00703327]
[1625175827268,7.0181,2137.5,2136.2,0.00703327]
[1625175827667,7.0181,2137.5,2137.3,0.00734306]
[1625175828169,12.0281,2137.5,2137.3,0.00734306]
[1625175828267,7.0181,2137.5,2137.3,0.00734306]
[1625175828367,12.0281,2137.5,2137.3,0.00734306]
[1625175828515,12.0281,2137.5,2136.8,0.00768114]
[1625175830864,20.0281,2137.5,2136.8,0.00768114]
[1625175830963,13.01,2137.5,2136.8,0.00768114]
[1625175831061,0.16,2137.4,2136.8,0.00768114]
[1625175831162,0.16,2137.4,2135.8,0.0085808]
[1625175831384,0.24387199,2137.3,2135.8,0.0085808]
[1625175831464,0.00809005,2136.8,2135.8,0.0085808]
[1625175831570,3.96519005,2136.8,2135.8,0.0085808]
[1625175831719,7.02319,2136.6,2135.8,0.0085808]
[1625175831968,12.18215918,2136.6,2135.8,0.0085808]
[1625175832070,32.18215918,2136.6,2135.8,0.0085808]
[1625175832216,0.12,2136.5,2135.8,0.0085808]
[1625175832319,0.26020739,2136.5,2135.8,0.0085808]
[1625175832423,20.0,2136.4,2135.8,0.0085808]
[1625175832522,5.01,2136.4,2134.1,0.1]
[1625175832621,20.0,2136.3,2134.1,0.1]
[1625175832824,5.09264331,2136.3,2134.1,0.1]
[1625175832972,4.05966518,2135.8,2134.1,0.1]
[1625175833071,4.05966518,2135.8,2135.1,0.0001]
[1625175833169,9.06966518,2135.8,2135.1,0.0001]
[1625175833276,17.06966518,2135.8,2135.1,0.0001]
[1625175833369,7.027,2135.5,2135.1,0.0001]
[1625175833569,12.037,2135.5,2135.1,0.0001]
[1625175833720,7.027,2135.5,2135.1,0.0001]
[1625175833813,12.037,2135.5,2135.1,0.0001]
[1625175834110,0.06,2135.4,2135.1,0.0001]
[1625175834966,9.37107,2135.3,2134.1,0.1]
[1625175835121,0.04,2135.2,2134.1,0.1]
[1625175835267,0.16237552,2135.1,2134.1,0.06066467]
[1625175835464,0.3399363,2135.2,2134.1,0.06066467]
[1625175835565,0.01066467,2134.8,2134.1,0.06066467]
[1625175835663,4.19246467,2134.8,2134.1,0.06066467]
[1625175835914,9.35229657,2134.8,2134.1,0.06066467]
[1625175836014,16.36967643,2134.8,2134.1,0.06066467]
[1625175836163,0.26024624,2134.7,2132.8,0.01393033]
[1625175836363,20.26024624,2134.7,2132.8,0.01393033]
[1625175836462,0.26024624,2134.7,2132.8,0.01393033]
[1625175836563,0.26388231,2134.5,2132.8,0.01393033]
[1625175836919,0.19073071,2134.2,2132.8,0.01393033]
[1625175837468,7.03106,2134.0,2132.8,0.01393033]
[1625175837574,12.04106,2134.0,2132.8,0.01393033]
[1625175838022,0.1,2133.9,2132.8,0.01393033]
[1625175838274,0.1,2133.9,2133.1,8.995e-05]
[1625175838376,0.23987365,2133.9,2133.1,8.995e-05]
[1625175838481,9.37732,2133.5,2133.1,8.995e-05]
[1625175838578,13.42432,2133.5,2133.1,8.995e-05]
[1625175838678,0.06,2133.4,2133.1,8.995e-05]
[1625175840278,20.00552,2133.5,2133.1,8.995e-05]
[1625175841772,18.43432,2133.5,2133.1,8.995e-05]
[1625175842472,9.057,2133.5,2133.1,8.995e-05]
[1625175842678,0.01268995,2133.8,2133.1,8.995e-05]
[1625175843231,0.01268995,2133.8,2133.1,4.49448995]
[1625175843326,0.01268995,2133.8,2133.2,15.0]
[1625175843527,0.01268995,2133.8,2133.2,28.01]
[1625175843629,0.01268995,2133.8,2133.5,7.02529]
[1625175843726,0.01268995,2133.8,2133.6,15.0]
[1625175843827,0.01268995,2133.8,2133.6,19.61]
[1625175843924,0.01268995,2133.8,2133.6,27.61]
[1625175844026,0.01268995,2133.8,2133.7,2.1022]
[1625175844125,0.01268995,2133.8,2133.7,27.1022]
[1625175844330,0.01066467,2134.8,2133.7,41.1331]
[1625175844477,0.01066467,2134.8,2133.8,8.08]
[1625175844575,0.01066467,2134.8,2133.9,15.4480496]
[1625175844683,0.01066467,2134.8,2133.9,27.14423176]
[1625175844781,0.01066467,2134.8,2133.9,32.15423176]
[1625175844933,0.01066467,2134.8,2134.3,7.02222]
[1625175845032,0.01066467,2134.8,2134.4,15.0]
[1625175845141,0.01066467,2134.8,2134.5,10.0]
[1625175845282,0.01066467,2134.8,2134.6,15.0]
[1625175845535,0.01066467,2134.8,2134.6,20.01]
[1625175845681,0.01066467,2134.8,2134.6,22.81016413]
[1625175845886,0.0085808,2136.3,2134.6,22.81016413]
[1625175845989,0.0085808,2136.3,2134.7,0.12200948]
[1625175846089,0.0085808,2136.3,2135.0,14.3831]
[1625175846192,0.0085808,2136.3,2135.1,15.150147]
[1625175846339,0.0085808,2136.3,2135.2,5.4480496]
[1625175846438,0.0085808,2136.3,2135.3,27.09094036]
[1625175846545,0.0085808,2136.3,2135.4,10.0196]
[1625175846688,0.0085808,2136.3,2135.5,34.62136854]
[1625175846838,0.0085808,2136.3,2135.6,8.0]
[1625175846938,0.0085808,2136.3,2135.7,25.1512]
[1625175847037,0.0085808,2136.3,2135.8,10.0]
[1625175847180,0.0085808,2136.3,2135.9,17.1285]
[1625175847327,0.0085808,2136.3,2136.1,28.05905]
[1625175847430,0.0085808,2136.3,2136.2,23.0]
[1625175847528,0.0085808,2136.3,2136.2,28.01]
[1625175847677,0.0085808,2136.3,2136.2,30.0672]
[1625175847861,0.0085808,2136.3,2136.2,33.58574779]
[1625175847961,0.0085808,2136.3,2136.2,7.61384779]
[1625175848062,0.0085808,2136.3,2136.2,2.77558366]
[1625175848260,0.0085808,2136.3,2136.1,13.05905]
[1625175848560,0.0085808,2136.3,2136.2,2.0204]
[1625175848766,0.0085808,2136.3,2136.1,28.06905]
[1625175848961,0.0085808,2136.3,2136.2,2.2345]
[1625175849165,0.0085808,2136.3,2136.1,5.705]
[1625175849311,0.0085808,2136.3,2136.2,2.1894]
[1625175849499,0.0085808,2136.3,2136.1,5.705]
[1625175849600,0.0085808,2136.3,2136.1,4.2178]
[1625175850248,0.0085808,2136.3,2136.2,2.0814]
[1625175850350,0.0085808,2136.3,2136.2,4.89]
[1625175851499,0.0085808,2136.3,2136.2,7.0521]
[1625175852900,0.0085808,2136.3,2136.2,4.89]
[1625175853103,0.0085808,2136.3,2135.0,4.87878366]
[1625175853200,0.0085808,2136.3,2135.3,2.0448]
[1625175853301,0.0085808,2136.3,2135.0,2.0393]
[1625175853701,0.0085808,2136.3,2134.9,9.82226413]
[1625175854255,0.0085808,2136.3,2135.0,15.0]
[1625175854355,0.0085808,2136.3,2134.9,11.93506413]
[1625175854453,0.0085808,2136.3,2134.9,9.82226413]
[1625175855309,0.0085808,2136.3,2134.9,24.82226413]
[1625175855410,4.4968808,2136.3,2134.9,2.80016413]
[1625175855612,9.5068808,2136.3,2134.5,0.53731751]
[1625175855711,0.16404356,2136.2,2134.5,0.53731751]
[1625175855811,7.02487,2136.0,2134.5,0.53731751]
[1625175856011,0.14574132,2135.9,2134.5,0.53731751]
[1625175856255,0.14574132,2135.9,2133.5,11.70576]
[1625175856256,0.14574132,2135.9,2134.0,2.0315]
[1625175856341,0.14574132,2135.9,2133.7,15.0]
[1625175856439,4.0117,2135.8,2133.6,4.81131751]
[1625175856541,0.2745353,2135.7,2133.6,0.53731751]
[1625175856941,7.02641,2135.5,2133.7,7.02641]
[1625175857088,0.18752319,2135.4,2133.6,0.53731751]
[1625175857289,0.18752319,2135.4,2133.5,2.0078]
[1625175857390,0.18752319,2135.4,2133.3,11.7065]
[1625175857391,0.12,2135.3,2133.3,11.7065]
[1625175857495,0.20738628,2135.2,2133.1,2.09208995]
[1625175857596,20.20738628,2135.2,2133.2,2.78110413]
[1625175857689,20.20738628,2135.2,2133.1,8.995e-05]
[1625175857843,20.04,2135.1,2133.1,8.995e-05]
[1625175857990,14.00339,2134.7,2133.1,8.995e-05]
[1625175858091,0.17872837,2134.6,2133.1,8.995e-05]
[1625175858470,20.14966586,2134.4,2133.8,0.01160531]
[1625175858569,25.15966586,2134.4,2133.8,0.01160531]
[1625175858665,5.01,2134.4,2133.8,0.01160531]
[1625175858766,0.2,2134.3,2133.8,0.01160531]
[1625175858917,0.08,2134.2,2133.8,0.01160531]
[1625175859016,3.1803,2134.2,2133.8,0.01160531]
[1625175859215,8.1903,2134.2,2133.8,0.01160531]
[1625175859316,7.0314,2134.0,2133.8,0.01160531]
[1625175859515,12.0414,2134.0,2133.8,0.01160531]
[1625175859714,0.04,2133.9,2133.8,0.01160531]
[1625175860022,9.51711278,2134.7,2133.8,0.01160531]
[1625175860171,0.18729823,2135.0,2133.8,0.01160531]
[1625175860323,10.0703,2135.2,2133.8,0.01160531]
[1625175860420,10.21141628,2135.2,2133.8,0.01160531]
[1625175860520,0.14111628,2135.2,2133.8,0.01160531]
[1625175860703,11.71841,2135.3,2133.8,0.01160531]
[1625175860761,0.17515813,2135.4,2133.8,0.01160531]
[1625175860914,0.14164973,2135.4,2133.8,0.01160531]
[1625175861014,0.02493839,2135.7,2133.8,0.01160531]
[1625175861113,0.29124932,2136.2,2133.8,0.01160531]
[1625175861462,7.02586,2135.9,2133.8,9.23398531]
[1625175861564,0.29124932,2136.2,2133.8,12.04838531]
[1625175861666,0.02707511,2136.2,2133.9,15.0]
[1625175861765,0.14133668,2136.1,2134.0,2.1473]
[1625175861917,0.0085808,2136.3,2134.1,15.0]
[1625175862016,0.0085808,2136.3,2134.1,23.0]
[1625175862267,0.0085808,2136.3,2134.2,2.25780445]
[1625175862412,0.0085808,2136.3,2134.3,15.0]
[1625175862512,0.0085808,2136.3,2134.4,0.00687392]
[1625175862616,0.0085808,2136.3,2134.4,2.16227392]
[1625175862716,0.0085808,2136.3,2134.8,7.02326]
[1625175862980,0.0085808,2136.3,2134.4,9.36541]
[1625175863587,0.17989482,2136.5,2134.4,11.48761]
[1625175863742,20.0,2136.3,2134.4,9.36541]
[1625175863840,7.02577,2135.6,2134.0,9.36516]
[1625175863940,11.27847,2135.6,2133.8,0.01160531]
[1625175864143,0.25355947,2135.5,2133.8,0.01160531]
[1625175864342,0.1,2135.5,2133.8,0.01160531]
[1625175864441,0.21004474,2135.4,2133.8,0.01160531]
[1625175864549,0.21004474,2135.4,2133.1,8.995e-05]
[1625175864641,0.1,2135.3,2133.1,8.995e-05]